Cogmind - Beta 13 @@@ ROGUE MODE // 2024.05.07 @ 13:21:41 Player: f3-rnm Result: Self-destructed Performance ------------- Evolutions (4) 2000 Regions Visited (12) 2400 Robots Destroyed (150) 750 Value Destroyed (7915) 7915 Prototype IDs (26) 520 Alien Tech Used (0) 0 Bonus (3752) 3752 TOTAL SCORE: 17337 Bonus ------- High Alert Combat Kills 981 Follower Combat Kills 171 Entered Garrisons 800 Used RIF Installer 1500 Aligned with FarCom 300 Cogmind --------- Core Integrity 377/850 Matter 227/300 Energy 77/100 System Corruption 17% Temperature Cool (30) Movement Core (800) Ox15 Location -6/Garrison Parts ------- > --- POWER (1) -------- (None) > --- PROPULSION (4) --- (None) > --- UTILITY (8) ------ High-capacity Storage Unit > --- WEAPON (2) ------- Enhanced Autogun Precision Assault Rifle > --- INVENTORY (20) --- Improved Deuterium Engine Neutrino Core Carbon-fiber Leg Armored Leg Improved Heat Sink Advanced Heat Sink Superbattery (1500) Large Matter Pod (150) High-capacity Matter Pod (78) Kinecellerator Improved Weapon Cycler Microactuators Transmission Jammer Relay Coupler [Heavy] (12) Long-range Tractor Beam Heavy Phase Cannon Power Maul Axe Peak State ------------ > --- POWER ------------ Micro Fission Core > --- PROPULSION ------- Medium Treads Improved Titanium Leg Potential Leg Potential Leg > --- UTILITY ---------- High-capacity Storage Unit 0b10 Alert Chip Melee Analysis Suite Microactuators Hardened Medium Armor Plating Improved Shield Generator > --- WEAPON ----------- Precision Assault Rifle Power Maul > --- INVENTORY -------- Micro Nuclear Core Neutrino Core Compact Wheel Improved Heat Sink Large Storage Unit Superbattery Large Matter Pod Improved Weapon Cycler Improved Weapon Cycler Transmission Jammer Advanced Shield Generator Relay Coupler [NC] Relay Coupler [Behemoth] Long-range Tractor Beam Heavy Phase Cannon Enhanced Autogun Flak Cannon Mini Grenade Launcher Remote Datajack [Rating: 71] Favorites ----------- Power Light Nuclear Core Engine Improved Deuterium Engine Power Core Light Nuclear Core Propulsion Light Treads Treads Light Treads Leg Potential Leg Wheel Compact Wheel Utility Large Storage Unit Device Improved Heat Sink Storage Large Storage Unit Processor 0b10 Alert Chip Hackware Relay Coupler [NC] Protection Improved Light Armor Plating Weapon Improved Light Cannon Energy Gun Medium Laser Energy Cannon Heavy Phase Cannon Ballistic Gun Light Assault Rifle Ballistic Cannon Improved Light Cannon Launcher Mini Grenade Launcher Special Weapon Remote Datajack Impact Weapon Power Maul Slashing Weapon Axe Build | -11 -10 -10 -10 -9 -8 -8 -8 -8 -7 -7 -6 -6 ------- Run | Yrd Mat Min Exi Min Mat Gar Mat Gar Fac Gar Fac Gar Slots Evolved 8 | . . . . . 4 . . . 2 . 2 . Power . | . . . . . . . . . . . . . Propulsion 2 | . . . . . 2 . . . . . . . Utility 6 | . . . . . 2 . . . 2 . 2 . Weapon . | . . . . . . . . . . . . . Parts Attached 170 | 6 13 8 2 . 13 28 9 31 14 31 6 9 Power 14 | 1 2 2 . . 1 3 . 1 . 4 . . Engine 7 | 1 2 1 . . . . . . . 3 . . Core 7 | . . 1 . . 1 3 . 1 . 1 . . Reactor . | . . . . . . . . . . . . . Propulsion 35 | 2 . . 2 . 3 7 2 4 3 11 . 1 Treads 24 | 2 . . . . 3 7 1 4 1 6 . . Leg 10 | . . . 2 . . . 1 . 2 5 . . Wheel 1 | . . . . . . . . . . . . 1 Hover . | . . . . . . . . . . . . . Flight . | . . . . . . . . . . . . . Utility 39 | 1 4 1 . . 1 6 1 6 5 8 4 2 Device 19 | . 3 1 . . . 3 . 2 3 6 1 . Storage 4 | 1 1 . . . . 1 . . 1 . . . Processor 4 | . . . . . 1 . . 1 1 . . 1 Hackware 3 | . . . . . . . . . . . 2 1 Protection 9 | . . . . . . 2 1 3 . 2 1 . Artifact . | . . . . . . . . . . . . . Weapon 82 | 2 7 5 . . 8 12 6 20 6 8 2 6 Energy Gun 2 | 1 . . . . 1 . . . . . . . Energy Cannon 4 | . . . . . . . . 1 1 2 . . Ballistic Gun 25 | 1 4 . . . . 6 4 3 2 1 2 2 Ballistic Cannon 16 | . . 3 . . 4 3 . 5 1 . . . Launcher 14 | . 3 2 . . 1 1 . 4 . 2 . 1 Special Weapon 2 | . . . . . . . . 1 . . . 1 Impact Weapon 16 | . . . . . 2 2 2 6 2 1 . 1 Slashing Weapon 3 | . . . . . . . . . . 2 . 1 Piercing Weapon . | . . . . . . . . . . . . . Special Melee Weapon . | . . . . . . . . . . . . . Unidentified Prototypes 3 | . . . . . 1 . 1 . 1 . . . Corrupted Parts 1 | . . . . . . . . . . 1 . . System Corruption 10 | . . . . . . . . . . 10 . . Parts Lost 47 | . 3 2 . . . 5 1 2 1 15 2 16 Power 7 | . 1 1 . . . 2 . . . 2 . 1 Propulsion 16 | . . . . . . 1 . 1 1 8 . 5 Utility 19 | . 1 1 . . . 1 1 1 . 5 1 8 Weapon 5 | . 1 . . . . 1 . . . . 1 2 Highest Loss Streak 12 | . 3 2 . . . 3 1 1 1 5 2 12 To Critical Strikes . | . . . . . . . . . . . . . Average Slot Usage (%) 91 | . 97 91 71 71 86 96 91 99 81 91 98 83 Engine 5 | . 13 10 . . . . . . . 6 6 5 Core 4 | . . 2 14 14 9 8 9 9 7 . . . Treads 19 | . 28 28 23 . 18 18 18 18 11 9 26 9 Leg 11 | . . . 4 28 18 18 18 18 17 19 . . Device 13 | . 12 5 14 14 9 17 10 9 11 22 19 12 Storage 10 | . 14 14 14 14 9 9 9 9 7 7 6 6 Processor 4 | . . . . . 5 2 . 8 9 9 6 11 Protection 3 | . . . . . . 5 8 8 7 3 5 5 Energy Gun 1 | . 8 . . . . . . . . . . . Ballistic Gun 7 | . 19 2 . . . 12 16 9 2 1 7 7 Ballistic Cannon 5 | . . 25 . . 17 4 . 2 . . . . Impact Weapon 1 | . . . . . . . 1 5 4 5 . 2 Naked Turns . | . . . . . . . . . . . . . Heaviest Build 81 | 13 30 35 35 27 35 40 41 48 81 71 71 65 Greatest Support 93 | 40 40 40 60 60 60 60 60 60 93 93 88 88 Greatest Overweight (x) 3 | . . . . . 1 1 2 1 1 1 . 3 Average Overweight (x) . | . . . . . . . . . . . . 2 Largest Inventory Capacity 20 | 8 15 15 15 15 15 15 15 15 20 20 20 20 Average Capacity 16 | 7 13 15 15 15 15 15 15 15 19 20 20 20 Most Carried 20 | 2 15 15 15 15 15 15 15 15 20 20 20 20 Average Carried 15 | . 10 13 14 15 14 14 14 14 18 19 19 19 Final Capacity 20 | 8 15 15 15 15 15 15 15 15 20 20 20 20 Final Carried 20 | 2 15 13 15 15 15 15 15 15 20 18 20 18 Class Distribution -------------------- 61% | Mutant 37% | Scavenger-Mutant Dominant Class ---------------- Mutant | -10/Materials Mutant | -10/Mines Mutant | -10/Exiles Mutant | -9/Mines Mutant | -8/Materials Scavenger-Mutant | -8/Garrison Scavenger-Mutant | -8/Materials Mutant | -8/Garrison Mutant | -7/Factory Scavenger-Mutant | -7/Garrison Scavenger-Mutant | -6/Factory Scavenger-Mutant | -6/Garrison Resources | -11 -10 -10 -10 -9 -8 -8 -8 -8 -7 -7 -6 -6 ----------- Run | Yrd Mat Min Exi Min Mat Gar Mat Gar Fac Gar Fac Gar Matter Collected 4542 | 156 411 311 . . 280 1170 340 510 456 701 89 118 Remotely 109 | . . . . . . . . 109 . . . . Salvage Created 5059 | 20 533 134 . . 396 1041 377 713 350 1203 118 174 Parts 290 | 2 41 20 . . 17 67 25 57 8 39 8 6 Haulers Intercepted 3 | . 2 . . . 1 . . . . . . . Recyclers Shooed 1 | . . . . . . . 1 . . . . . Parts Field Recycled . | . . . . . . . . . . . . . Retrieved Matter . | . . . . . . . . . . . . . Parts Self-Destructed . | . . . . . . . . . . . . . Prevented . | . . . . . . . . . . . . . Kills | -11 -10 -10 -10 -9 -8 -8 -8 -8 -7 -7 -6 -6 ------- Run | Yrd Mat Min Exi Min Mat Gar Mat Gar Fac Gar Fac Gar Combat Hostiles Destroyed 130 | . 15 11 . . 10 25 8 27 4 24 3 3 Melee 12 | . . . . . . . . . . 10 . 2 Guns 35 | . 7 . . . . 13 8 4 1 . 2 . Cannons 35 | . . 5 . . 9 10 . 10 . . 1 . AOE 37 | . 8 6 . . 1 2 . 13 . 6 . 1 Classes Destroyed 13 | 1 6 . . . 4 1 . 1 . . . . Worker 7 | 1 2 2 . . . . 1 . 1 . . . Builder 2 | . 1 . . . . . . . 1 . . . Tunneler 1 | . 1 . . . . . . . . . . . Hauler 3 | . 2 . . . 1 . . . . . . . Recycler 5 | . . . . . 1 . 2 . 2 . . . Watcher 2 | . 1 . . . . . . . 1 . . . Swarmer 23 | . 3 9 . . . . 3 7 . . 1 . Grunt 58 | . 12 2 . . 5 9 2 11 2 12 . 3 Brawler 1 | . . . . . . . . 1 . . . . Duelist 5 | . . . . . 1 . . . . 2 2 . Sentry 30 | . . . . . 3 12 3 5 . 7 . . Hunter 4 | . . . . . 1 1 . . 1 1 . . Programmer 9 | . . . . . . 3 . 3 1 2 . . Best Kill Streak 12 | 1 6 3 . . 3 3 3 12 4 4 3 2 Combat Bots Only 12 | . 4 3 . . 2 3 3 12 2 4 3 2 Max Kills in Single Turn 3 | 1 3 2 . . 1 2 2 3 2 2 1 1 Gunslinging 1 | . . . . . . . 1 . . . . . Exploded 3 | . 3 2 . . 1 2 . 3 . 2 . 1 Melee 1 | . . . . . . . . . . 1 . 1 Uniques/NPCs Destroyed . | . . . . . . . . . . . . . Combat | -11 -10 -10 -10 -9 -8 -8 -8 -8 -7 -7 -6 -6 -------- Run | Yrd Mat Min Exi Min Mat Gar Mat Gar Fac Gar Fac Gar Hostile Shots Fired 1073 | . 90 22 . . 53 121 41 92 60 385 26 183 Missed 320 | . 19 7 . . 21 31 19 28 20 96 4 75 Damage Taken 8322 | . 721 190 . . 375 1319 362 976 447 2085 587 1260 Core 1394 | . 183 39 . . 31 99 61 96 61 351 . 473 Absorbed by Shields 1133 | . 173 30 . . 141 175 . . 170 444 . . Core Remaining (%) 49 | 100 . . . 11 . . . 47 . 41 . . Volleys Fired 344 | 3 68 19 . . 39 95 24 43 10 23 10 10 Largest 2 | 2 2 2 . . 2 2 2 2 2 2 2 2 Hottest 118 | 70 70 78 . . 78 78 56 72 115 118 118 53 Shots Fired 598 | 6 96 33 . . 76 187 46 76 20 28 17 13 Gun 334 | 6 85 2 . . . 127 46 37 10 5 10 6 Cannon 212 | . . 26 . . 74 56 . 29 10 10 7 . Launcher 51 | . 11 5 . . 2 4 . 10 . 13 . 6 Special 1 | . . . . . . . . . . . . 1 Kinetic 509 | 3 69 28 . . 74 183 46 66 19 5 10 6 Thermal 37 | 3 16 . . . . . . . 1 10 7 . Explosive 51 | . 11 5 . . 2 4 . 10 . 13 . 6 Electromagnetic . | . . . . . . . . . . . . . Robot Hit Streak 13 | 1 8 4 . . 9 9 9 13 8 5 6 7 Robot Miss Streak 7 | 2 4 5 . . 2 3 6 7 4 1 2 2 Penetration Max 1 | . . . . . . 1 . . . . . . Secondary Targets 3 | . . . . . . 1 2 . . . . . Max Gunslinging Chain 1 | . . . . . . 1 1 . . . . . Shots Hit Robots 442 | 1 56 14 . . 49 102 37 58 29 66 10 20 Core Hits 307 | 2 34 15 . 1 23 53 26 93 8 29 9 14 Critical Kills 2 | . . . . . . . . . . 2 . . Critical Parts Destroyed 18 | . . . . . . 1 . . 4 13 . . Critical Strikes 27 | . . 1 . . . 5 . . 4 17 . . Destroy 1 | . . . . . . 1 . . . . . . Blast 5 | . . 1 . . . 4 . . . . . . Smash 19 | . . . . . . . . . 4 15 . . Sever 2 | . . . . . . . . . . 2 . . Melee Attacks 163 | . . . . . 5 4 8 17 26 89 . 14 Impact 134 | . . . . . 5 4 8 17 26 72 . 2 Slashing 29 | . . . . . . . . . . 17 . 12 Piercing . | . . . . . . . . . . . . . Sneak Attacks 5 | . . . . . . . 2 . 3 . . . Combat Hostiles . | . . . . . . . . . . . . . Follow-up Attacks . | . . . . . . . . . . . . . Damage Inflicted 14005 | 31 1697 580 . 6 1196 2237 828 1984 972 3281 252 941 Guns 3292 | 31 473 17 . . . 1211 628 598 91 . 149 94 Cannons 2738 | . . 273 . . 953 739 . 519 151 . 103 . Explosions 3978 | . 1202 275 . . 243 287 . 867 . 645 . 459 Melee 3954 | . . . . . . . 200 . 730 2636 . 388 Ramming 43 | . 22 15 . 6 . . . . . . . . Kinetic 5780 | 7 350 290 . . 953 1950 628 1117 242 . 149 94 Thermal 250 | 24 123 . . . . . . . . . 103 . Explosive 3978 | . 1202 275 . . 243 287 . 867 . 645 . 459 Electromagnetic . | . . . . . . . . . . . . . Impact 3014 | . . . . . . . 200 . 730 2084 . . Slashing 940 | . . . . . . . . . . 552 . 388 Piercing . | . . . . . . . . . . . . . Highest Corruption 17 | . 2 2 2 2 . 2 3 7 1 15 . 17 Average Corruption 3 | . 1 2 2 2 . 1 2 5 1 7 . 14 Corruption Purged . | . . . . . . . . . . . . . Corruption Blocked . | . . . . . . . . . . . . . Effects 123 | . 16 15 5 1 . 9 9 19 1 47 . 1 Message Errors 27 | . 4 7 . 1 . . 2 4 . 8 . 1 Matter Fused 32 | . 6 5 2 . . 3 2 3 . 11 . . Heat Flow Errors 9 | . . 1 1 . . . . 3 . 4 . . Energy Discharges 18 | . 2 . . . . 3 . 5 . 8 . . Parts Rejected 3 | . 1 . . . . . 1 . . 1 . . Parts Fused 1 | . . . 1 . . . . . . . . . Data Loss (minor) 17 | . 1 . 1 . . 2 1 2 . 10 . . Data Loss (major) 7 | . 1 1 . . . . . . 1 4 . . Misfires 5 | . 1 . . . . 1 1 1 . 1 . . Alerts 3 | . . 1 . . . . 1 1 . . . . Weapon Failures 1 | . . . . . . . 1 . . . . . Overload Shots . | . . . . . . . . . . . . . Overflow Damage 1009 | . 5 49 . . 3 . 55 8 320 526 . 43 Projectiles 3 | . . . . . 3 . . . . . . . Explosions 86 | . 5 49 . . . . . 8 . 16 . 8 Melee 920 | . . . . . . . 55 . 320 510 . 35 Knockbacks 39 | . . 2 . . 10 2 . 4 7 14 . . Impact 15 | . . . . . . . . . 2 13 . . Kinetic 21 | . . 2 . . 9 2 . 4 4 . . . Secondary 3 | . . . . . 1 . . . 1 1 . . Self-Inflicted Damage 389 | . 128 95 . . . 21 . 48 . 46 . 51 Shots 12 | . 5 2 . . . 1 . 1 . 1 . 2 Rammed 4 | . 2 2 . . . . . . . . . . Targets Rammed 5 | . 2 2 . 1 . . . . . . . . Kicked 1 | . . . . 1 . . . . . . . . Crushed . | . . . . . . . . . . . . . Highest Temperature 270 | 30 128 200 225 . 96 126 17 222 129 270 2 32 Average Temperature 51 | 17 34 52 114 . 34 62 5 79 62 99 1 16 Received Heat Transfer 2334 | . 289 18 . . 152 351 189 315 72 531 . 417 Siege Activations . | . . . . . . . . . . . . . Robots Corrupted . | . . . . . . . . . . . . . Combat Hostiles . | . . . . . . . . . . . . . Parts Fried 18 | . . . . . . . 1 . 3 14 . . Impact Corruptions 36 | . . . . . . . 2 . 13 21 . . Robots Melted . | . . . . . . . . . . . . . Combat Hostiles . | . . . . . . . . . . . . . Parts Melted 1 | . 1 . . . . . . . . . . . Heat Transferred 555 | 74 370 . . . . . . . . . 111 . Parts Sabotaged . | . . . . . . . . . . . . . Parts Stolen . | . . . . . . . . . . . . . Parts Stripped . | . . . . . . . . . . . . . Power Chain Reactions . | . . . . . . . . . . . . . Alert | -11 -10 -10 -10 -9 -8 -8 -8 -8 -7 -7 -6 -6 ------- Run | Yrd Mat Min Exi Min Mat Gar Mat Gar Fac Gar Fac Gar Peak Influence 955 | 5 328 254 . . 348 955 458 926 603 867 484 376 Initial 485 | . 3 90 . . . 115 458 256 485 282 455 338 Average 407 | . 169 112 . . 157 611 341 677 538 651 459 349 Maximum Alert Level 3 | . 1 1 . . 1 3 2 3 2 3 2 1 Low Security (%) 28 | 100 59 82 . 100 74 10 . . . . . . Level 1 25 | . 40 17 . . 25 17 68 16 . 11 . 100 Level 2 25 | . . . . . . 27 31 35 100 33 100 . Level 3 20 | . . . . . . 44 . 47 . 55 . . Level 4 . | . . . . . . . . . . . . . Level 5 . | . . . . . . . . . . . . . High Security . | . . . . . . . . . . . . . Max Security . | . . . . . . . . . . . . . Squads Dispatched 9 | . 4 . . . . . 2 . 2 . 1 . Investigation 1 | . 1 . . . . . . . . . . . Extermination . | . . . . . . . . . . . . . Reinforcement 7 | . 3 . . . . . 2 . 2 . . . Assault 1 | . . . . . . . . . . . 1 . Garrison . | . . . . . . . . . . . . . Intercept . | . . . . . . . . . . . . . Searches Triggered . | . . . . . . . . . . . . . Construction Impeded . | . . . . . . . . . . . . . Haulers Reinforced 1 | . . . . . . . . . 1 . . . Active Scanning Responses . | . . . . . . . . . . . . . Cargo Convoy Interrupts . | . . . . . . . . . . . . . Alert ID Control Effect 3 | . . . . . . . . . . . . 3 Stealth | -11 -10 -10 -10 -9 -8 -8 -8 -8 -7 -7 -6 -6 --------- Run | Yrd Mat Min Exi Min Mat Gar Mat Gar Fac Gar Fac Gar Distress Signals 3 | . 1 . . . 1 . 1 . . . . . Communications Jammed . | . . . . . . . . . . . . . Distress Signals . | . . . . . . . . . . . . . Times Spotted 182 | . 32 16 . . 14 26 15 27 9 25 3 15 Peak Tracking Total 12 | . 5 3 . . 3 5 7 6 4 4 3 12 Tactical Retreats 6 | . . 1 . . 1 2 . 1 . 1 . . Traps | -11 -10 -10 -10 -9 -8 -8 -8 -8 -7 -7 -6 -6 ------- Run | Yrd Mat Min Exi Min Mat Gar Mat Gar Fac Gar Fac Gar Traps Triggered 22 | . 3 . . . . 6 2 4 . 4 1 2 Indirectly . | . . . . . . . . . . . . . Trap Hack Attempts . | . . . . . . . . . . . . . Triggered . | . . . . . . . . . . . . . Disarmed . | . . . . . . . . . . . . . Reprogrammed . | . . . . . . . . . . . . . Reused . | . . . . . . . . . . . . . Traps Extracted . | . . . . . . . . . . . . . Installed 6 | . . . . . . . . 6 . . . . Triggered . | . . . . . . . . . . . . . Most Traps Carried 4 | . . 2 . . . . . 4 . . . . Machines | -11 -10 -10 -10 -9 -8 -8 -8 -8 -7 -7 -6 -6 ---------- Run | Yrd Mat Min Exi Min Mat Gar Mat Gar Fac Gar Fac Gar Machines Disabled 22 | . 4 . . . . 5 . 5 . 6 1 1 Max in Single Turn 3 | . 3 . . . . 1 . 1 . 1 1 1 Garrison Relay 12 | . . . . . . 3 . 3 . 5 . 1 Machines Repaired . | . . . . . . . . . . . . . Machines Dismantled . | . . . . . . . . . . . . . Machines Sabotaged . | . . . . . . . . . . . . . Overloaded Fab Kills . | . . . . . . . . . . . . . Hacking | -11 -10 -10 -10 -9 -8 -8 -8 -8 -7 -7 -6 -6 --------- Run | Yrd Mat Min Exi Min Mat Gar Mat Gar Fac Gar Fac Gar Machines Accessed 18 | . 1 . 2 . 2 1 3 3 3 2 1 . Terminals 10 | . 1 . . . 1 1 1 3 1 2 . . Fabricators . | . . . . . . . . . . . . . Repair Stations . | . . . . . . . . . . . . . Recycling Units 2 | . . . . . . . 1 . 1 . . . Scanalyzers . | . . . . . . . . . . . . . Garrison Access 4 | . . . . . 1 . 1 . 1 . 1 . Total Hacks 37 | . 2 . 2 . 5 3 12 5 3 4 1 . Successful 12 | . 1 . 2 . 2 . 3 2 1 . 1 . Failed 25 | . 1 . . . 3 3 9 3 2 4 . . Catastrophic 8 | . . . . . . 2 . 2 2 2 . . Database Lockouts . | . . . . . . . . . . . . . Manual 5 | . . . 1 . 3 . . . 1 . . . Terminals 25 | . 2 . . . 3 3 7 5 1 4 . . Fabricators . | . . . . . . . . . . . . . Repair Stations . | . . . . . . . . . . . . . Recycling Units 5 | . . . . . . . 4 . 1 . . . Scanalyzers . | . . . . . . . . . . . . . Garrison Access 5 | . . . . . 2 . 1 . 1 . 1 . Terminal Hacks 7 | . 1 . 2 . 1 . 1 2 . . . . Record 1 | . . . 1 . . . . . . . . . Part Schematic 1 | . . . . . 1 . . . . . . . Emergency Access Points 1 | . . . . . . . . 1 . . . . Unreport Threat 1 | . . . . . . . 1 . . . . . Zone Layout 1 | . 1 . . . . . . . . . . . Garrison Registry 1 | . . . . . . . . 1 . . . . Derelict Proto ID Bank 1 | . . . 1 . . . . . . . . . Fabricator Hacks . | . . . . . . . . . . . . . Repair Station Hacks . | . . . . . . . . . . . . . Recycling Unit Hacks 1 | . . . . . . . 1 . . . . . Retrieve Components 1 | . . . . . . . 1 . . . . . Scanalyzer . | . . . . . . . . . . . . . Garrison Access Hacks 4 | . . . . . 1 . 1 . 1 . 1 . Unlock Access 4 | . . . . . 1 . 1 . 1 . 1 . Unauthorized Hacks . | . . . . . . . . . . . . . Terminals . | . . . . . . . . . . . . . Fabricators . | . . . . . . . . . . . . . Repair Stations . | . . . . . . . . . . . . . Recycling Units . | . . . . . . . . . . . . . Scanalyzers . | . . . . . . . . . . . . . Garrison Access . | . . . . . . . . . . . . . Data Cores Recovered . | . . . . . . . . . . . . . Used . | . . . . . . . . . . . . . Hacking Detections 13 | . 1 . . . 2 1 2 2 3 2 . . Full Trace Events 2 | . . . . . . . . 1 . 1 . . Feedback Events . | . . . . . . . . . . . . . Feedback Blocked . | . . . . . . . . . . . . . Robot Schematics Acquired . | . . . . . . . . . . . . . Robots Built . | . . . . . . . . . . . . . Authchips . | . . . . . . . . . . . . . Time . | . . . . . . . . . . . . . Total Robot Build Rating . | . . . . . . . . . . . . . Part Schematics Acquired 1 | . . . . . 1 . . . . . . . Parts Built . | . . . . . . . . . . . . . Authchips . | . . . . . . . . . . . . . Time . | . . . . . . . . . . . . . Total Part Build Rating . | . . . . . . . . . . . . . Parts Repaired . | . . . . . . . . . . . . . Time . | . . . . . . . . . . . . . Parts Recycled . | . . . . . . . . . . . . . Recycled Matter . | . . . . . . . . . . . . . Retrieved Matter . | . . . . . . . . . . . . . Retrieved Components . | . . . . . . . . . . . . . Parts Scanalyzed . | . . . . . . . . . . . . . Part Schematics Acquired . | . . . . . . . . . . . . . Parts Damaged . | . . . . . . . . . . . . . Bothacking | -11 -10 -10 -10 -9 -8 -8 -8 -8 -7 -7 -6 -6 ------------ Run | Yrd Mat Min Exi Min Mat Gar Mat Gar Fac Gar Fac Gar Used RIF Installer 3 | . . . . . . 1 . 1 . 1 . . Threat Obfuscator 1 | . . . . . . . . 1 . . . . Alert ID Control 1 | . . . . . . . . . . 1 . . Robots Hacked 1 | . . . . . . . . . . . . 1 Non-combat . | . . . . . . . . . . . . . Combat 1 | . . . . . . . . . . . . 1 Robot Hacks Applied 1 | . . . . . . . . . . . . 1 streamctrl_high 1 | . . . . . . . . . . . . 1 Relay Couplers Released 52 | . . . . . . 16 . 11 . 21 . 4 Machine Destruction 48 | . . . . . . 12 . 11 . 21 . 4 Programmers 4 | . . . . . . 4 . . . . . . Attached 3 | . . . . . . . . . . . 2 1 Fabnet Peak Effective % . | . . . . . . . . . . . . . Robots Rewired . | . . . . . . . . . . . . . Allies Hacked . | . . . . . . . . . . . . . Hacks Repelled . | . . . . . . . . . . . . . Allies | -11 -10 -10 -10 -9 -8 -8 -8 -8 -7 -7 -6 -6 -------- Run | Yrd Mat Min Exi Min Mat Gar Mat Gar Fac Gar Fac Gar Total Allies 2 | . . 1 . . . . . . . . . 1 Largest Group 1 | . . 1 . . . . . . . . . 1 Highest-Rated Group 85 | . . 31 . . . . . . . . . 85 Highest-Rated Ally 85 | . . 31 . . . . . . . . . 85 Total Orders . | . . . . . . . . . . . . . Ally Attacks 9 | . . 6 . . . . . . . . . 3 Total Damage 227 | . . 63 . . . . . . . . . 164 Kills 5 | . . 2 . . . . . . . . . 3 Allies Corrupted . | . . . . . . . . . . . . . Allies Melted 1 | . . . . . . . . . . . . 1 Intel | -11 -10 -10 -10 -9 -8 -8 -8 -8 -7 -7 -6 -6 ------- Run | Yrd Mat Min Exi Min Mat Gar Mat Gar Fac Gar Fac Gar Robot Analysis Total . | . . . . . . . . . . . . . Derelict Logs Recovered 1 | . . 1 . . . . . . . . . . Drone Launches . | . . . . . . . . . . . . . Drone Recoveries . | . . . . . . . . . . . . . Exploration | -11 -10 -10 -10 -9 -8 -8 -8 -8 -7 -7 -6 -6 ------------- Run | Yrd Mat Min Exi Min Mat Gar Mat Gar Fac Gar Fac Gar Turns Passed 8580 | 102 1266 1147 516 21 477 1088 693 806 412 1448 383 221 Spaces Moved 5069 | 56 663 657 360 25 232 691 429 600 264 782 213 97 Core 5 | 5 . . . . . . . . . . . . Treads 2187 | 51 663 657 263 . . 39 8 1 . 267 213 25 Legs 2805 | . . . 97 25 232 652 421 599 264 515 . . Wheels 72 | . . . . . . . . . . . . 72 Hover . | . . . . . . . . . . . . . Flight . | . . . . . . . . . . . . . Fastest Speed 45 | 50 160 160 90 45 45 45 90 45 45 107 160 130 Average Speed 127 | 150 160 160 141 81 95 98 93 89 103 143 160 148 Slowest Speed 320 | 160 160 160 160 90 170 240 320 240 170 240 160 160 Overloaded Moves 39 | . . . . 5 5 6 . 12 11 . . . Propulsion Burnouts . | . . . . . . . . . . . . . Robots Hopped . | . . . . . . . . . . . . . Cave-ins Triggered . | . . . . . . . . . . . . . Exploration Rate (%) 43 | 5 88 99 70 16 19 64 36 62 11 70 7 23 Regions Visited 12 Branch Regions 3 Pre-discovered Areas 3 | . . 2 1 . . . . . . . . . Known Exits Taken 4 | . . . . . 1 . 1 . 1 . 1 . Unknown Exits Taken 5 | 1 1 1 1 1 . . . . . . . . Scrap Searched 1 | . . 1 . . . . . . . . . . Spaces Dug 42 | . . . . . 3 4 6 2 4 20 1 2 Terrain Destroyed 362 | . 88 56 . . 25 31 6 29 5 102 3 17 Melee 27 | . . . . . 3 2 6 2 4 8 . 2 Projectile 16 | . . 2 . . 4 4 . . 1 2 3 . AOE 319 | . 88 54 . . 18 25 . 27 . 92 . 15 Terrain Rammed . | . . . . . . . . . . . . . Walls Destroyed . | . . . . . . . . . . . . . Machines Disabled . | . . . . . . . . . . . . . Actions | -11 -10 -10 -10 -9 -8 -8 -8 -8 -7 -7 -6 -6 --------- Run | Yrd Mat Min Exi Min Mat Gar Mat Gar Fac Gar Fac Gar Total 6428 | 66 789 720 369 25 403 918 669 759 337 983 238 152 Wait 433 | . 13 24 . . 99 63 185 17 7 24 1 . Move 5062 | 55 662 656 359 25 232 690 429 599 264 781 213 97 Hop . | . . . . . . . . . . . . . Pick Up 98 | 2 22 5 2 . 8 14 6 15 4 9 7 4 Fast Attach 50 | 6 2 1 2 . 3 4 3 3 8 16 2 . Attach 50 | . 7 3 . . 4 8 1 4 3 11 4 5 Detach 17 | . 2 . 2 . . 1 . 1 7 4 . . Swap 70 | . 4 4 . . 6 16 5 24 3 4 . 4 Drop 90 | . 7 6 4 . 7 21 8 19 5 10 1 2 Fire 344 | 3 68 19 . . 39 95 24 43 10 23 10 10 Melee 163 | . . . . . 5 4 8 17 26 89 . 14 Ram . | . . . . . . . . . . . . . Kick . | . . . . . . . . . . . . . Crush 4 | . 2 2 . . . . . . . . . . Escape Stasis 41 | . . . . . . 2 . 11 . 12 . 16 Rewire . | . . . . . . . . . . . . . Trap 6 | . . . . . . . . 6 . . . . Miscellaneous . | . . . . . . . . . . . . . Route ------- -11/Scrapyard -10/Materials (discovered 4 exits: [*Mat x3] / [*Min]) -10/Mines (discovered 4 exits: [*Mat x2] / *Exi / [*Sub]) -10/Exiles -9/Mines -8/Materials -8/Garrison (discovered 2 exits: *Mat x2) -8/Materials -8/Garrison (discovered 3 exits: *Fac x3) -7/Factory -7/Garrison (discovered 3 exits: *Fac x3) -6/Factory (discovered 2 exits: [*Low] / Gar) -6/Garrison History --------- Turn | Location | Event 12 | -11/Scrapyard | Discovered new exit (range 16) 103 | -11/Scrapyard | Entered Materials 292 | -10/Materials | Discovered new exit (range 14) 318 | -10/Materials | Build established: Mutant 561 | -10/Materials | Discovered new exit (range 10) 899 | -10/Materials | Lost 3 parts (1p1u1w) 912 | -10/Materials | Discovered new exit (range 8) 978 | -10/Materials | Discovered new exit (range 7) 1028 | -10/Materials | Core integrity fell below 50% 1369 | -10/Materials | Entered Mines 1485 | -10/Mines | Discovered new exit (range 16) 1724 | -10/Mines | Found a hidden stash of uninstalled traps 1924 | -10/Mines | Learned location of Storage (-9) 1995 | -10/Mines | A weapon hastily lodged in a ceiling crevice suddenly fell to the ground 2075 | -10/Mines | Core integrity fell below 20% 2191 | -10/Mines | Escorted by a lone wolf Derelict 2244 | -10/Mines | Learned Materials garrison access intel 2251 | -10/Mines | Discovered new exit (range 5) 2333 | -10/Mines | Discovered new exit (range 5) 2508 | -10/Mines | Deemed a non-threat by the Exiles lab entrance 2508 | -10/Mines | Discovered new exit (range 5) 2516 | -10/Mines | Entered Exiles 2557 | -10/Exiles | Met 8R-AWN 2583 | -10/Exiles | Met EX-HEX 2629 | -10/Exiles | Met EX-BIN 2649 | -10/Exiles | Aligned with FarCom system 2650 | -10/Exiles | Given EX-Vault access code 2692 | -10/Exiles | Met EX-DEC 2839 | -10/Exiles | Learned location of Zion (-7) 2924 | -10/Exiles | Opened EX-Vault 2936 | -10/Exiles | Found Superbattery 2941 | -10/Exiles | Found Potential Leg 2943 | -10/Exiles | Found Potential Leg 2947 | -10/Exiles | Found 0b10 Alert Chip 2965 | -10/Exiles | Warned to stay clear of 0b10 Research branches 3023 | -10/Exiles | Discovered new exit (range 10) 3032 | -10/Exiles | Stole three prototypes: Potential Leg, Superbattery, 0b10 Alert Chip 3032 | -10/Exiles | Entered Mines 3033 | -9/Mines | Discovered new exit (range 14) 3053 | -9/Mines | Entered Materials 3053 | -8/Materials | Evolved 4 slots: Propulsion x2, Utility x2 3054 | -8/Materials | Loaded intel: 1 garrison access location 3530 | -8/Materials | Identified exit to Garrison 3530 | -8/Materials | Entered Garrison 3576 | -8/Garrison | Triggered checkpoint 3639 | -8/Garrison | Garrison Relay disabled 3772 | -8/Garrison | Discovered new exit (range 13) 3786 | -8/Garrison | Triggered checkpoint 3833 | -8/Garrison | Garrison Relay disabled 3922 | -8/Garrison | Build established: Scavenger-Mutant 4092 | -8/Garrison | Triggered checkpoint 4224 | -8/Garrison | Triggered checkpoint 4243 | -8/Garrison | Garrison Relay disabled 4271 | -8/Garrison | Discovered new exit (range 14) 4325 | -8/Garrison | Installed Relay Interface Framework 4478 | -8/Garrison | Lost 3 parts (1p1u1w) 4618 | -8/Garrison | Entered Materials 5270 | -8/Materials | Build established: Mutant 5311 | -8/Materials | Identified exit to Garrison 5311 | -8/Materials | Entered Garrison 5329 | -8/Garrison | Triggered checkpoint 5357 | -8/Garrison | Garrison Relay disabled 5433 | -8/Garrison | Triggered checkpoint 5471 | -8/Garrison | Triggered checkpoint 5512 | -8/Garrison | Destroyed 12 combat bots 5519 | -8/Garrison | Expanded RIF knowledge: Threat Obfuscation 5618 | -8/Garrison | Discovered new exit (range 10) 5661 | -8/Garrison | Triggered checkpoint 5734 | -8/Garrison | Garrison Relay disabled 5816 | -8/Garrison | Build established: Scavenger-Mutant 5816 | -8/Garrison | Discovered new exit (range 32) 5816 | -8/Garrison | Discovered new exit (range 64) 5816 | -8/Garrison | Discovered new exit (range 65) 5843 | -8/Garrison | Core integrity fell below 50% 5967 | -8/Garrison | Triggered checkpoint 6084 | -8/Garrison | Garrison Relay disabled 6117 | -8/Garrison | Entered Factory 6117 | -7/Factory | Evolved 2 slots: Utility x2 6119 | -7/Factory | FarCom data flow suspended 6199 | -7/Factory | Build established: Mutant 6529 | -7/Factory | Identified exit to Garrison 6529 | -7/Factory | Entered Garrison 6545 | -7/Garrison | Triggered checkpoint 6605 | -7/Garrison | Triggered checkpoint 6619 | -7/Garrison | Garrison Relay disabled 6883 | -7/Garrison | Triggered checkpoint 6949 | -7/Garrison | Garrison Relay disabled 7061 | -7/Garrison | Triggered checkpoint 7106 | -7/Garrison | Garrison Relay disabled 7157 | -7/Garrison | Triggered checkpoint 7256 | -7/Garrison | Expanded RIF knowledge: Alert ID Control 7288 | -7/Garrison | Build established: Scavenger-Mutant 7313 | -7/Garrison | Triggered checkpoint 7367 | -7/Garrison | Garrison Relay disabled 7439 | -7/Garrison | System corruption reached 10% 7464 | -7/Garrison | Lost 3 parts (2n1u) 7465 | -7/Garrison | Discovered new exit (range 14) 7595 | -7/Garrison | Triggered checkpoint 7646 | -7/Garrison | Discovered new exit (range 12) 7669 | -7/Garrison | Triggered checkpoint 7681 | -7/Garrison | Core integrity fell below 50% 7732 | -7/Garrison | Lost 5 parts (1p3n1u) 7768 | -7/Garrison | Garrison Relay disabled 7892 | -7/Garrison | Discovered new exit (range 10) 7977 | -7/Garrison | Entered Factory 7977 | -6/Factory | Evolved 2 slots: Utility x2 8202 | -6/Factory | Discovered new exit (range 5) 8327 | -6/Factory | First assault squad dispatched 8360 | -6/Factory | Identified exit to Garrison 8360 | -6/Factory | Entered Garrison 8392 | -6/Garrison | Triggered checkpoint 8445 | -6/Garrison | Garrison Relay disabled 8448 | -6/Garrison | Lost 4 parts (3n1u) 8543 | -6/Garrison | Spotted B-75 Beast 8556 | -6/Garrison | Triggered checkpoint 8557 | -6/Garrison | Triggered checkpoint 8557 | -6/Garrison | Triggered checkpoint 8559 | -6/Garrison | Hijacked Beast 5a control node with streamctrl_high 8576 | -6/Garrison | System corruption reached 10% 8579 | -6/Garrison | Core integrity fell below 50% 8581 | -6/Garrison | Self-destructed Last Messages --------------- 08568_ Beast 5a critical meltdown. 08570_ Com. Wheel destroyed. 08570_ Imp. Light Armor Plating destroyed. 08575_ G-67 Veteran destroyed. 08575_ Microactuators destroyed. 08575_ Destroyed Microactuators. 08575_ Relay Coupler [NC] destroyed. 08575_ 0b10 Alert Chip destroyed. 08575_ Relay Coupler [Grunt] destroyed. 08575_ System corrupted by crushing effect (+5). 08575_ System corrupted by crushing effect (+4). 08575_ System corrupted by crushing effect (+2). 08576_ Mni. Grenade Launcher destroyed. 08577_ Chain reaction triggered in Imp. Deuterium Engine. 08577_ Y-54 Guardian destroyed. 08578_ Imp. Melee Analysis Suite destroyed. 08578_ System corrupted by crushing effect (+5). 08578_ Knocked back. 08579_ ED1=CR|QPNGW3BX#WTNXHQWB9|AD 08580_ P-60 Hacker resets Y-54 Guardian, system corruption cleaned. Map ----- +----------------------------------------------------+ | ?????????????????????????????????????????????????? | | ?????????????????????????????????????????????????? | | ???????????????????????????#####?????????????????? | | ???????????????????????????# #?????????????????? | | ???????????????????#########* *#######???????????? | | ???????????????????#" ! = #???????????? | | ???????????????????###!! ########### #???????????? | | ????????????????????#"" ""#????????# #???????????? | | ????????????????????#######????????# #???#####???? | | ???????????????????????????????????# #???# #???? | | ?????????????????????????????????### ##### #???? | | ?????????????????????????????????# #???? | | ?????????????????????????????????# #???? | | ?????????????????????????????????# ##########???? | | ?????????????????????????????????# #????????????? | | ?????????????????????????????????# #????????????? | | ?????????????????????????????????# ##???????????? | | ???????????????????????###???????# ^"#???????????? | | ???????????????????????# ???????# ^##???????????? | | ???????????????????????# #???????# #????????????? | | ????????????????####???# #???????# #????????????? | | ????????????????# ### #???????# #????????????? | | ?????????######## # # ##??????# #????????????? | | ????????? g*= ######## #????????????? | | ????????? g!! #????????????? | | ?????????^ =g @ #????????????? | | ????????????????# b ###########????????????? | | ???????????# ## # ###????????????????????? | | ??????? +% * g g Y #????????????????????? | | ?????????# % ]%* = #????????????????????? | | ?????????# ! % #????????????????????? | | ?????????# #????????????????????? | | ?????????### ## # ###????????????????????? | | ???????????# ??# # p ??????????????????????? | | ??????????????? ?????????????????????? | | ?????????????? ? ????????????????????? | | ????????????? #???????????????????? | | ???????????? ##""""# #####???????????????????? | | ???????????# ??????## #???????????????????????? | | ???????????# ????????# #???????????????????????? | | ??????????????????????? #???????????????????????? | | ??????????????????????? #???????????????????????? | | ??????????????????????? #???????????????????????? | | ???????????????????????? ????????????????????????? | | ?????????????????????????????????????????????????? | | ?????????????????????????????????????????????????? | | ?????????????????????????????????????????????????? | | ?????????????????????????????????????????????????? | | ?????????????????????????????????????????????????? | | ?????????????????????????????????????????????????? | +----------------------------------------------------+ Best States ------------- Heat Dissipation 65 Energy Generation 16 Energy Capacity 290 Matter Stores 300 Matter Capacity 300 Sight Range 20 Terrain Scan Density 10 Jamming Range 12 Armor Coverage 225 Melee Speed Boost 40 Evasion (%) 58 Melee Accuracy 6 Recoil Reduction 4 Particle Charging 15 Relay Coupler Types 3 Relay Coupler Value 63 Item Schematics ----------------- Huge Storage Unit | -8/Materials | Hacked Robot Schematics ------------------ None Fabricated ------------ Nothing Alien Tech Used ----------------- None Achievements -------------- None Challenges ------------ None Game ------ Seed OpticalNuclearPrototype Manual? 0 Play Time 01:01:41 Cumulative 187.7 hours Start 2024.05.06 @ 22:44:43 End 2024.05.07 @ 13:21:41 Sessions 3 Manual Loads 0 Difficulty Rogue Special Mode None Game No. 190 Rogue 154 Adventurer 36 Explorer 0 Win Type - Total 10 Types 3/0/7/0/0/0/0/0/0 Lore% 56 Gallery% 82 Achievement% 71 Wizard Run 0 Options --------- Layout 0 ASCII 0 Keyboard 0 Movement Mouse Keybinds 0 Fullscreen 1 Font 18/SmallcapsGlow Map View 76x50 Zoom Use 0% Tactical HUD 1 Map Filters NONE Filters NONE Steam 1 RUN: 66191978-a676-4893-b47a-72acf31badef